fUSD/lending_fUSD_20251127
["ID","MTS","AMOUNT","RATE_DAILY","PERIOD"]
[394994946,1764282632959,-30.61401931,0.00015369,2]
[394994947,1764282632968,-500.0,0.00015369,2]
[394994950,1764282632977,-500.0,0.00015369,2]
[394994952,1764282632987,-500.0,0.00015369,2]
[394994953,1764282632996,-500.0,0.00015369,2]
[394994955,1764282633006,-500.0,0.00015369,2]
[394994958,1764282633015,-500.0,0.00015369,2]
[394994959,1764282633025,-226.8510233,0.00015369,2]
[394994962,1764282633035,-500.0,0.00015369,2]
[394994963,1764282633046,-500.0,0.00015369,2]
[394994966,1764282633056,-500.0,0.00015369,2]
[394994968,1764282633066,-500.0,0.00015369,2]
[394994970,1764282633076,-518.70275441,0.00015369,2]
[394994972,1764282633086,-518.70275441,0.00015369,2]
[394994974,1764282633096,-518.70275441,0.00015369,2]
[394994976,1764282633105,-518.70275441,0.00015369,2]
[394994978,1764282633115,-518.70275441,0.00015369,2]
[394994980,1764282633124,-518.70275441,0.00015369,2]
[394994982,1764282633134,-518.70275441,0.00015369,2]
[394994983,1764282633143,-518.70275441,0.00015369,2]
[394994986,1764282633152,-518.70275441,0.00015369,2]
[394994987,1764282633163,-518.70275441,0.00015369,2]
[394994990,1764282633173,-518.70275441,0.00015369,2]
[394994991,1764282633182,-518.70275441,0.00015369,2]
[394994993,1764282633191,-518.70275441,0.00015369,2]
[394994995,1764282633201,-518.70275441,0.00015369,2]
[394994998,1764282633210,-518.70275441,0.00015369,2]
[394995000,1764282633220,-518.70275441,0.00015369,2]
[394995002,1764282633229,-518.70275441,0.00015369,2]
[394995003,1764282633238,-173.23593733,0.00015369,2]
[394995006,1764282633250,-345.46681708,0.00015369,2]
[394995008,1764282633259,-518.70275441,0.00015369,2]
[394995010,1764282633268,-518.70275441,0.00015369,2]
[394995011,1764282633277,-518.70275441,0.00015369,2]
[394995014,1764282633290,-518.70275441,0.00015369,2]
[394995016,1764282633299,-518.70275441,0.00015369,2]
[394995018,1764282633308,-518.70275441,0.00015369,2]
[394995020,1764282633317,-518.70275441,0.00015369,2]
[394995022,1764282633326,-518.70275441,0.00015369,2]
[394995024,1764282633336,-518.70275441,0.00015369,2]
[394995026,1764282633345,-518.70275441,0.00015369,2]
[394995028,1764282633354,-518.70275441,0.00015369,2]
[394995030,1764282633363,-518.70275441,0.00015369,2]
[394995032,1764282633371,-518.70275441,0.00015369,2]
[394995034,1764282633380,-518.70275441,0.00015369,2]
[394995036,1764282633389,-518.70275441,0.00015369,2]
[394995038,1764282633398,-518.70275441,0.00015369,2]
[394995040,1764282633407,-518.70275441,0.00015369,2]
[394995042,1764282633416,-518.70275441,0.00015369,2]
[394995044,1764282633425,-518.70275441,0.00015369,2]
[394995046,1764282633434,-502.74266965,0.00015369,2]
[394995048,1764282633443,-502.74266965,0.00015369,2]
[394995050,1764282633451,-502.74266965,0.00015369,2]
[394995052,1764282633460,-169.17034125,0.00015369,2]
[394995054,1764282633475,-333.5723284,0.00015369,2]
[394995056,1764282633484,-266.4276716,0.00015369,2]
[394995058,1764282633495,-236.31499805,0.00015369,2]
[394995060,1764282633503,-502.74266965,0.00015369,2]
[394995063,1764282633513,-502.74266965,0.00015369,2]
[394995065,1764282633522,-502.74266965,0.00015369,2]
[394995066,1764282633531,-502.74266965,0.00015369,2]
[394995068,1764282633540,-502.74266965,0.00015369,2]
[394995071,1764282633549,-502.74266965,0.00015369,2]
[394995072,1764282633558,-502.74266965,0.00015369,2]
[394995075,1764282633568,-502.74266965,0.00015369,2]
[394995077,1764282633577,-502.74266965,0.00015369,2]
[394995078,1764282633586,-29.94362326,0.00015369,2]
[394995159,1764282640502,-472.79904639,0.00015369,2]
[394995160,1764282640512,-502.74266965,0.00015369,2]
[394995161,1764282640521,-502.74266965,0.00015369,2]
[394995162,1764282640531,-502.74266965,0.00015369,2]
[394995163,1764282640540,-502.74266965,0.00015369,2]
[394995164,1764282640549,-502.74266965,0.00015369,2]
[394995165,1764282640558,-502.74266965,0.00015369,2]
[394995166,1764282640568,-502.74266965,0.00015369,2]
[394995167,1764282640577,-502.74266965,0.00015369,2]
[394995168,1764282640588,-502.74266965,0.00015369,2]
[394995169,1764282640597,-502.74266967,0.00015369,2]
[394995170,1764282640607,-502.74266967,0.00015369,2]
[394995171,1764282640616,-973.72,0.00015372,2]
[394995172,1764282640625,-414.60784787,0.00015373,2]
[394995173,1764282640634,-500.0,0.00015373,2]
[394995174,1764282640644,-500.0,0.00015373,2]
[394995175,1764282640653,-162.60635992,0.00015373,2]
[394995176,1764282640662,-300.68097483,0.00015373,2]
[394995177,1764282640672,-500.0,0.00015373,2]
[394995178,1764282640681,-500.0,0.00015373,2]
[394995179,1764282640694,-500.0,0.00015373,2]
[394995180,1764282640703,-500.0,0.00015373,2]
[394995181,1764282640712,-600.0,0.00015373,2]
[394995183,1764282640721,-1000.0,0.00015425,2]
[394995184,1764282640730,-1000.0,0.00015473,2]
[394995185,1764282640740,-1116.28,0.00015527,2]
[394995186,1764282640750,-166.66,0.00015534,2]
[394995187,1764282640760,-500.0,0.00015572,2]
[394995188,1764282640772,-500.0,0.00015572,2]
[394995189,1764282640782,-500.0,0.00015572,2]
[394995190,1764282640791,-500.0,0.00015572,2]
[394995191,1764282640800,-179.35,0.00015572,2]
[394995192,1764282640810,-500.0,0.00015572,2]
[394995193,1764282640821,-500.0,0.00015572,2]
[394995194,1764282640831,-506.8857899,0.00015572,2]
[394995195,1764282640840,-588.47923029,0.00015572,2]
[394995196,1764282640852,-500.0,0.00015572,2]
[394995197,1764282640863,-500.0,0.00015572,2]
[394995198,1764282640873,-170.54211254,0.00015572,2]
[394995199,1764282640882,-973.72,0.00015646,2]
[394995200,1764282640892,-600.0,0.00015647,2]
[394995201,1764282640901,-233.5,0.00015839,2]
[394995202,1764282640910,-300.0,0.0001587,2]
[394995203,1764282640920,-372.7,0.00015873,2]
[394995204,1764282640929,-16979.71191471,0.000159,2]
[394995205,1764282640939,-826.26819696,0.000159,2]
[394995206,1764282640948,-826.26819692,0.000159,2]
[394995207,1764282640957,-826.26819692,0.000159,2]
[394995208,1764282640966,-973.72,0.0001592,2]
[394995209,1764282640976,-500.0,0.00015921,2]
[394995210,1764282640985,-897.31767821,0.00015921,2]
[394995211,1764282640994,-600.0,0.00015921,2]
[394995212,1764282641003,-510.94156746,0.00015931,2]
[394995213,1764282641013,-21189.06958565,0.00015931,2]
[394995214,1764282641024,-150.0,0.0001596,2]
[394995215,1764282641038,-150.0,0.0001596,2]
[394995216,1764282641048,-150.0,0.0001596,2]
[394995217,1764282641057,-200.0,0.0001596,2]
[394995218,1764282641067,-150.0,0.0001596,2]
[394995219,1764282641076,-500.0,0.0001596,2]
[394995220,1764282641085,-150.0,0.0001596,2]
[394995221,1764282641095,-600.0,0.0001596,2]
[394995222,1764282641104,-500.0,0.0001596,2]
[394995223,1764282641113,-642.0,0.0001596,2]
[394995224,1764282641122,-500.0,0.00015973,2]
[394995225,1764282641131,-503.77862628,0.00015973,2]
[394995226,1764282641140,-500.0,0.00015973,2]
[394995227,1764282641150,-500.0,0.00015973,2]
[394995228,1764282641159,-500.0,0.00015973,2]
[394995229,1764282641168,-169.36701925,0.00015995,2]
[394995230,1764282641178,-254.96158498,0.00015995,2]
[394995231,1764282641187,-500.0,0.00015995,2]
[394995232,1764282641196,-550.16016653,0.00015995,2]
[394995233,1764282641205,-500.0,0.00015999,2]
[394995234,1764282641215,-500.0,0.00015999,2]
[394995235,1764282641224,-150.0,0.00016,2]
[394995236,1764282641233,-150.0,0.00016,2]
[394995237,1764282641242,-3364.48122645,0.00016,2]
[394995238,1764282641251,-150.0,0.00016,2]
[394995239,1764282641260,-3876.92624545,0.00016,2]
[394995240,1764282641269,-3966.24271448,0.00016,2]
[394995241,1764282641278,-150.0,0.00016,2]
[394995242,1764282641287,-10945.30641358,0.00016,2]
[394995243,1764282641434,-181.77051968,0.00016,2]
[394995244,1764282641444,-592982.20130584,0.00016,4]
[394995245,1764282641454,-16979.71191464,0.00016011,2]
[394995246,1764282641463,-166.66,0.00016031,2]
[394995247,1764282641473,-21189.06958558,0.00016039,2]
[394995248,1764282641482,-150.0,0.00016097,2]
[394995249,1764282641492,-150.0,0.00016097,2]
[394995250,1764282641501,-500.0,0.00016097,2]
[394995251,1764282641510,-200.0,0.00016097,2]
[394995252,1764282641520,-600.0,0.00016097,2]
[394995253,1764282641530,-500.0,0.00016097,2]
[394995254,1764282641539,-642.0,0.00016097,2]
[394995255,1764282641549,-288.63,0.00016109,2]
[394995256,1764282641558,-16979.71191464,0.00016122,2]
[394995257,1764282641568,-21189.06958558,0.00016146,2]
[394995258,1764282641577,-973.72,0.00016194,2]
[394995259,1764282641586,-600.0,0.00016195,2]
[394995260,1764282641596,-19945.4589521,0.000162,5]
[394995261,1764282641605,-510.94156741,0.00016209,2]
[394995262,1764282641615,-16979.71191464,0.00016233,2]
[394995263,1764282641624,-150.0,0.00016234,2]
[394995264,1764282641633,-150.0,0.00016234,2]
[394995265,1764282641643,-500.0,0.00016234,2]
[394995266,1764282641657,-600.0,0.00016234,2]
[394995267,1764282641666,-500.0,0.00016234,2]
[394995268,1764282641676,-642.0,0.00016234,2]
[394995269,1764282641685,-300.0,0.00016235,2]
[394995270,1764282641694,-195.0,0.00016235,2]
[394995271,1764282641703,-250.0,0.00016235,2]
[394995272,1764282641712,-195.0,0.00016235,2]
[394995273,1764282641721,-21189.06958558,0.00016254,2]
[394995274,1764282641731,-16979.71191464,0.00016344,2]
[394995275,1764282641740,-21189.06958558,0.00016362,2]
[394995276,1764282641750,-283.03885101,0.00016371,2]
[394995277,1764282641760,-200.0,0.00016371,2]
[394995278,1764282641773,-500.0,0.00016371,2]
[394995279,1764282641782,-600.0,0.00016371,2]
[394995280,1764282641792,-500.0,0.00016371,2]
[394995281,1764282641801,-642.0,0.00016371,2]
[394995282,1764282641813,-347.0,0.00016394,2]
[394995283,1764282641823,-500.0,0.00016438,2]
[394995284,1764282641832,-500.0,0.00016438,2]
[394995285,1764282641842,-500.0,0.00016438,2]
[394995286,1764282641852,-528.4392115,0.00016438,2]
[394995287,1764282641862,-150.0,0.00016438,2]
[394995288,1764282641871,-6590.51,0.00016438,2]
[394995289,1764282641880,-16979.71191464,0.00016456,2]
[394995290,1764282641889,-973.72,0.00016468,2]
[394995291,1764282641899,-600.0,0.00016469,2]
[394995292,1764282641909,-21189.06958558,0.00016469,2]
[394995293,1764282641919,-510.94156741,0.00016487,2]
[394995294,1764282641928,-347.0,0.00016506,2]
[394995295,1764282641938,-500.0,0.00016508,2]
[394995296,1764282641947,-600.0,0.00016508,2]
[394995297,1764282641957,-500.0,0.00016508,2]
[394995298,1764282641967,-642.0,0.00016508,2]
[394995299,1764282641976,-834.0,0.00016512,2]
[394995300,1764282641985,-1257.0,0.00016512,2]
[394995301,1764282641995,-703.277,0.00016512,2]
[394995302,1764282642004,-909.0,0.00016512,2]
[394995303,1764282642013,-1193.0,0.00016512,2]
[394995304,1764282642023,-3439.0,0.00016512,2]
[394995305,1764282642032,-610.0,0.00016512,2]
[394995306,1764282642042,-1321.0,0.00016512,2]
[394995307,1764282642051,-166.66,0.00016527,2]
[394995308,1764282642061,-16979.71191464,0.00016567,2]
[394995309,1764282642071,-217.64411064,0.00016572,2]
[394995310,1764282642080,-150.0,0.00016575,2]
[394995311,1764282642089,-21189.06958558,0.00016577,2]
[394995312,1764282642099,-347.0,0.00016621,2]
[394995313,1764282642109,-1680.0,0.00016627,2]
[394995314,1764282642118,-500.0,0.00016645,2]
[394995315,1764282642127,-600.0,0.00016645,2]
[394995316,1764282642138,-500.0,0.00016645,2]
[394995317,1764282642147,-642.0,0.00016645,2]
[394995318,1764282642156,-347.0,0.00016649,2]
[394995319,1764282642166,-1956.43093803,0.0001666,2]
[394995320,1764282642179,-347.0,0.00016672,2]
[394995321,1764282642189,-420.0,0.00016677,2]
[394995322,1764282642198,-16979.71191464,0.00016678,2]
[394995323,1764282642209,-12457.29302702,0.00016679,2]
[394995324,1764282642218,-21189.06958558,0.00016685,2]
[394995325,1764282642227,-347.0,0.00016686,2]
[394995326,1764282642237,-150.0,0.00016712,2]
[394995327,1764282642246,-217.64411062,0.00016736,2]
[394995328,1764282642256,-973.72,0.00016742,2]
[394995329,1764282642265,-600.0,0.00016743,2]
[394995330,1764282642275,-347.0,0.00016744,2]
[394995331,1764282642285,-5888.0,0.00016745,2]
[394995332,1764282642294,-347.0,0.00016747,2]
[394995333,1764282642303,-510.94156741,0.00016765,2]
[394995334,1764282642312,-500.0,0.00016782,2]
[394995335,1764282642321,-600.0,0.00016782,2]
[394995336,1764282642330,-500.0,0.00016782,2]
[394995337,1764282642339,-642.0,0.00016782,2]
[394995338,1764282642348,-16979.71191464,0.00016789,2]
[394995339,1764282642357,-21189.06958558,0.00016792,2]
[394995340,1764282642366,-2513.40692,0.0001683,2]
[394995341,1764282642375,-326.31457323,0.000169,2]
[394995342,1764282642384,-985.0606,0.000169,2]
[394995343,1764282642393,-217.64411062,0.000169,2]
[394995344,1764282642403,-807.27166745,0.000169,2]
[394995345,1764282642412,-224.0167955,0.000169,2]
[394995346,1764282642421,-16979.71191464,0.000169,2]
[394995347,1764282642430,-21189.06958558,0.000169,2]
[394995348,1764282642439,-288.63,0.00016915,2]
[394995349,1764282642448,-500.0,0.00016919,2]
[394995350,1764282642458,-600.0,0.00016919,2]
[394995351,1764282642467,-500.0,0.00016919,2]
[394995352,1764282642476,-642.0,0.00016919,2]
[394995353,1764282642485,-158.56724605,0.00016954,2]
[394995354,1764282642494,-347.0,0.00016956,2]
[394995355,1764282642503,-222.65612674,0.00016957,2]
[394995356,1764282642512,-502.89704796,0.00016973,2]
[394995357,1764282642521,-500.0,0.00016973,2]
[394995358,1764282642531,-500.0,0.00016973,2]
[394995359,1764282642540,-150.34604515,0.00016973,2]
[394995360,1764282642550,-501.07335338,0.00016973,2]
[394995361,1764282642559,-500.01,0.00016973,2]
[394995362,1764282642568,-500.0,0.00016973,2]
[394995363,1764282642577,-599.22714,0.00016973,2]
[394995364,1764282642586,-500.0,0.00016973,2]
[394995365,1764282642596,-4038.0760904,0.00016986,2]
[394995366,1764282642605,-1172.3355991,0.00016987,2]
[394995367,1764282642614,-1172.335599,0.00016987,2]
[394995368,1764282642623,-264.57102484,0.0001699,2]
[394995369,1764282642632,-264.57102484,0.0001699,2]
[394995370,1764282642641,-264.57102484,0.0001699,2]
[394995371,1764282642650,-284.0,0.00016993,2]
[394995372,1764282642659,-300.0,0.00016999,2]
[394995373,1764282642669,-300.0,0.00016999,2]
[394995374,1764282642678,-300.0,0.00016999,2]
[394995375,1764282642688,-1962.0,0.00017,2]
[394995376,1764282642698,-53867.55393655,0.00017,2]
[394995377,1764282642760,-2568325.0840791,0.00017,2]
[394995378,1764282642772,-270.2701,0.00017,2]
[394995380,1764282643347,260.8937,0.00014659,2]
[394995382,1764282644728,-826.26819692,0.000159,2]
[394995383,1764282644738,-427.24637793,0.00016179,2]
[394995384,1764282644747,-1602.0,0.00016512,2]
[394995385,1764282644757,-1491871.12853068,0.00017,2]
[394995395,1764282646319,-24737.11021254,0.00017,2]
[394995409,1764283076867,170.0,0.000155,4]
[394995410,1764283135126,9739.1163,0.00014546,2]
[394995411,1764283135153,5206.3337,0.00014546,2]
[394995412,1764283216164,150.86,0.00019178,30]
[394995413,1764283310417,150.0,0.00014674,2]
[394995414,1764283314023,3849.079914,0.00014676,2]
[394995416,1764283420129,202.39,0.00011673,2]
[394995417,1764283514163,-150.0,0.0001475,2]
[394995418,1764283514188,-261.5050617,0.00014763,2]
[394995419,1764283516793,-38.4949383,0.00014763,2]
[394995420,1764283516815,-128.1650617,0.00014777,2]
[394995421,1764283518888,-66.8349383,0.00014777,2]
[394995422,1764283518911,-114.18035694,0.00014804,2]
[394995423,1764283617934,-227.36914837,0.00014767,2]
[394995424,1764283620070,-166.66,0.00014767,2]
[394995425,1764283621878,-660.35689944,0.00014767,2]
[394995426,1764283623393,-250.0,0.00014767,2]
[394995427,1764283625094,-195.61395219,0.00014767,2]
[394995428,1764283625118,-58.62483108,0.00014804,2]
[394995429,1764283739123,5798.540086,0.00014731,2]
[394995430,1764283739145,4201.459914,0.00014731,2]
[394995431,1764283755175,10000.0,0.00014731,2]
[394995432,1764283779835,0.01,0.00014731,2]
[394995433,1764283779859,704.99,0.00014731,2]
[394995448,1764283831333,-250.0,0.00014814,2]
[394995451,1764283831343,-209.3641883,0.00014824,2]
[394995453,1764283831352,-195.0,0.00014824,2]
[394995455,1764283831361,-1331.25568271,0.00014825,2]
[394995457,1764283831370,-300.0,0.00014843,2]
[394995459,1764283831380,-300.0,0.00014843,2]
[394995461,1764283831389,-300.0,0.00014843,2]
[394995463,1764283831398,-195.0,0.00014888,2]
[394995465,1764283831407,-250.0,0.00014922,2]
[394995467,1764283831416,-187.0,0.00015,2]
[394995469,1764283831425,-147.27382899,0.00015068,2]
[394995482,1764283831668,-152.72617101,0.00015068,2]
[394995484,1764283831678,-1200.0,0.00015068,2]
[394995487,1764283831687,-12479.58837673,0.00015069,2]
[394995524,1764283837383,-6928.53045217,0.00015069,2]
[394995525,1764283837393,-861.97,0.00015069,2]
[394995526,1764283837402,-178.47310949,0.00015069,2]
[394995527,1764283837412,-500.0,0.00015069,2]
[394995528,1764283837421,-235.11211657,0.00015069,2]
[394995529,1764283837430,-500.0,0.00015069,2]
[394995530,1764283837439,-500.0,0.00015069,2]
[394995531,1764283837448,-500.0,0.00015069,2]
[394995532,1764283837457,-500.0,0.00015069,2]
[394995533,1764283837467,-551.38394709,0.00015069,2]
[394995534,1764283837477,-500.0,0.00015069,2]
[394995535,1764283837486,-500.0,0.00015069,2]
[394995536,1764283837495,-500.0,0.00015069,2]
[394995537,1764283837504,-500.0,0.00015069,2]
[394995538,1764283837514,-500.0,0.00015069,2]
[394995539,1764283837523,-500.0,0.00015069,2]
[394995540,1764283837533,-500.0,0.00015069,2]
[394995541,1764283837542,-500.0,0.00015069,2]
[394995542,1764283837552,-217222.12821875,0.0001507,2]
[394995543,1764283837570,-3250.56377943,0.0001507,2]
[394995752,1764283839589,-193240.74150182,0.0001507,2]
[394995754,1764283839598,-500.0,0.00015073,2]
[394995756,1764283839609,-300.0,0.00015169,2]
[394995758,1764283839618,-35210.38373777,0.0001517,2]
[394995760,1764283839627,-600.0,0.0001527,2]
[394995762,1764283839637,-19408.11882888,0.00015272,2]
[394995764,1764283839647,-500.0,0.00015273,2]
[394995766,1764283839656,-506.29642956,0.00015273,2]
[394995768,1764283839665,-150.0,0.00015288,2]
[394995770,1764283839674,-861.97,0.00015343,2]
[394995772,1764283839683,-35210.3837377,0.00015362,2]
[394995774,1764283839692,-219.0,0.0001542,2]
[394995776,1764283839702,-289.0,0.0001542,2]
[394995778,1764283839711,-19408.11882888,0.00015476,2]
[394995780,1764283839721,-1600.0,0.00015529,2]
[394995782,1764283839730,-600.0,0.00015544,2]
[394995784,1764283839739,-35210.3837377,0.00015554,2]
[394995786,1764283839750,-861.97,0.00015617,2]
[394995788,1764283839759,-19408.11882888,0.00015679,2]
[394995790,1764283839769,-1700.7756,0.00015726,2]
[394995792,1764283839778,-575.04444361,0.00015744,2]
[394995795,1764283839796,-35210.3837377,0.00015747,2]
[394995797,1764283839807,-600.0,0.00015818,2]
[394995799,1764283839816,-1000.0,0.00015821,2]
[394995801,1764283839827,-19408.11882888,0.00015883,2]
[394995803,1764283839836,-186.8,0.00015891,2]
[394995805,1764283839846,-861.97,0.00015891,2]
[394995807,1764283839856,-330.5072788,0.000159,2]
[394995809,1764283839865,-330.50727876,0.000159,2]
[394995811,1764283839875,-330.50727876,0.000159,2]
[394995813,1764283839884,-330.50727876,0.000159,2]
[394995815,1764283839894,-330.50727876,0.000159,2]
[394995817,1764283839904,-35210.3837377,0.00015939,2]
[394995819,1764283839914,-248.47,0.0001596,2]
[394995821,1764283839923,-150.0,0.00016,2]
[394995823,1764283839933,-150.0,0.00016,2]
[394995825,1764283839943,-3364.48122645,0.00016,2]
[394995827,1764283839953,-3876.92624545,0.00016,2]
[394995829,1764283839962,-150.0,0.00016,2]
[394995831,1764283839972,-3966.24271448,0.00016,2]
[394995833,1764283839981,-150.0,0.00016,2]
[394995835,1764283839991,-10945.30641358,0.00016,2]
[394995837,1764283840000,-150.0,0.00016,2]
[394995839,1764283840010,-150.0,0.00016,2]
[394995841,1764283840019,-200.0,0.00016,2]
[394995843,1764283840029,-693.0,0.00016,2]
[394995845,1764283840038,-150.0,0.00016,2]
[394995847,1764283840048,-500.0,0.00016,2]
[394995850,1764283840058,-525.0,0.00016,2]
[394995852,1764283840068,-150.0,0.00016,2]
[394995853,1764283840078,-150.0,0.00016,2]
[394995857,1764283840088,-150.0,0.00016,2]
[394995859,1764283840101,-500.0,0.00016,2]
[394995861,1764283840111,-19408.11882888,0.00016086,2]
[394995863,1764283840120,-600.0,0.00016092,2]
[394995865,1764283840131,-427.01065334,0.00016097,2]
[394995867,1764283840141,-772.251,0.00016122,2]
[394995869,1764283840155,-35210.3837377,0.00016131,2]
[394995871,1764283840166,-150.0,0.00016137,2]
[394995873,1764283840175,-250.0,0.00016137,2]
[394995875,1764283840185,-693.0,0.00016137,2]
[394995877,1764283840195,-150.0,0.00016137,2]
[394995879,1764283840206,-500.0,0.00016137,2]
[394995881,1764283840215,-525.0,0.00016137,2]
[394995883,1764283840226,-500.0,0.00016137,2]
[394995885,1764283840235,-861.97,0.00016165,2]
[394995887,1764283840245,-217.64411064,0.00016192,2]
[394995889,1764283840255,-250.0,0.00016225,2]
[394995892,1764283840265,-195.0,0.00016225,2]
[394995894,1764283840275,-300.0,0.00016225,2]
[394995895,1764283840284,-186.2305426,0.00016225,2]
[394995898,1764283840294,-200.0,0.00016274,2]
[394995900,1764283840305,-693.0,0.00016274,2]
[394995902,1764283840315,-200.0,0.00016274,2]
[394995904,1764283840325,-500.0,0.00016274,2]
[394995906,1764283840335,-525.0,0.00016274,2]
[394995908,1764283840346,-500.0,0.00016274,2]
[394995910,1764283840355,-195.0,0.00016284,2]
[394995912,1764283840365,-250.0,0.00016284,2]
[394995914,1764283840374,-19408.11882888,0.0001629,2]
[394995916,1764283840385,-310.0,0.00016292,2]
[394995918,1764283840394,-35210.3837377,0.00016323,2]
[394995920,1764283840404,-600.0,0.00016366,2]
[394995922,1764283840413,-1500.0,0.00016368,2]
[394995924,1764283840423,-693.0,0.00016411,2]
[394995926,1764283840433,-500.0,0.00016411,2]
[394995928,1764283840443,-525.0,0.00016411,2]
[394995930,1764283840452,-500.0,0.00016411,2]
[394995932,1764283840462,-1602.0,0.00016412,2]
[394995934,1764283840472,-3439.0,0.00016412,2]
[394995936,1764283840481,-1325.353,0.00016412,2]
[394995938,1764283840491,-610.0,0.00016412,2]
[394995940,1764283840500,-1257.0,0.00016412,2]
[394995942,1764283840510,-834.0,0.00016412,2]
[394995944,1764283840520,-1193.0,0.00016412,2]
[394995947,1764283840533,-909.732,0.00016412,2]
[394995949,1764283840542,-703.277,0.00016412,2]
[394995951,1764283840553,-6503.0,0.00016412,2]
[394995953,1764283840565,-2717.0,0.00016412,2]
[394995955,1764283840574,-275.584,0.00016412,2]
[394995957,1764283840584,-310.986,0.00016412,2]
[394995959,1764283840595,-150.0,0.00016438,2]
[394995961,1764283840604,-500.0,0.00016438,2]
[394995963,1764283840612,-500.0,0.00016438,2]
[394995965,1764283840622,-500.0,0.00016438,2]
[394995967,1764283840636,-528.4392115,0.00016438,2]
[394995969,1764283840647,-651.34,0.00016438,2]
[394995971,1764283840656,-651.34,0.00016438,2]
[394995973,1764283840666,-651.34,0.00016438,2]
[394995975,1764283840675,-651.34,0.00016438,2]
[394995977,1764283840684,-7690.07,0.00016438,2]
[394995979,1764283840693,-861.97,0.00016439,2]
[394995981,1764283840702,-420.0,0.0001649,2]
[394995983,1764283840712,-19408.11882888,0.00016493,2]
[394995985,1764283840721,-35210.3837377,0.00016516,2]
[394995987,1764283840734,-217.64411062,0.00016546,2]
[394995989,1764283840743,-693.0,0.00016548,2]
[394995991,1764283840752,-500.0,0.00016548,2]
[394995993,1764283840761,-525.0,0.00016548,2]
[394995995,1764283840770,-500.0,0.00016548,2]
[394995997,1764283840779,-1680.0,0.00016574,2]
[394995999,1764283840789,-150.0,0.00016575,2]
[394996001,1764283840798,-600.0,0.0001664,2]
[394996003,1764283840807,-2349.58213635,0.0001666,2]
[394996005,1764283840817,-1450.0,0.00016678,2]
[394996007,1764283840826,-651.34,0.00016679,2]
[394996009,1764283840835,-12457.29302702,0.00016679,2]
[394996011,1764283840844,-693.0,0.00016685,2]
[394996014,1764283840853,-500.0,0.00016685,2]
[394996016,1764283840863,-525.0,0.00016685,2]
[394996018,1764283840871,-500.0,0.00016685,2]
[394996020,1764283840881,-19408.11882888,0.00016697,2]
[394996022,1764283840890,-2164.0,0.00016707,2]
[394996024,1764283840899,-35210.3837377,0.00016708,2]
[394996026,1764283840908,-150.0,0.00016712,2]
[394996028,1764283840920,-222.61,0.00016712,2]
[394996030,1764283840931,-1450.0,0.00016713,2]
[394996032,1764283840942,-861.97,0.00016713,2]
[394996035,1764283840952,-1450.0,0.00016752,2]
[394996037,1764283840961,-2751.0,0.00016753,2]
[394996039,1764283840970,-693.0,0.00016822,2]
[394996041,1764283840980,-500.0,0.00016822,2]
[394996043,1764283840989,-525.0,0.00016822,2]
[394996045,1764283840998,-500.0,0.00016822,2]
[394996047,1764283841007,-1450.0,0.00016884,2]
[394996049,1764283841016,-222.65612674,0.00016886,2]
[394996051,1764283841025,-1411.49075775,0.000169,2]
[394996053,1764283841034,-168.31044422,0.000169,2]
[394996055,1764283841044,-35210.3837377,0.000169,2]
[394996057,1764283841053,-19408.11882888,0.000169,2]